bitfinex/quotes_BTCUSD_20260103
["timestamp","ask_amount","ask_price","bid_price","bid_amount"]
[1767477656032,0.01105167,90484.0,90478.0,0.05660672]
[1767477656944,0.01105167,90484.0,90478.0,0.04555431]
[1767477657158,0.01105167,90484.0,90478.0,0.05660672]
[1767477657744,0.01105155,90485.0,90480.0,0.04555431]
[1767477658067,0.01105167,90484.0,90480.0,0.04555431]
[1767477658407,0.01105179,90483.0,90480.0,0.04555431]
[1767477661153,0.01105155,90485.0,90483.0,0.04881069]
[1767477661336,0.01105192,90482.0,90477.0,0.04881069]
[1767477661672,0.01105204,90481.0,90477.0,0.04881069]
[1767477661902,0.06631055,90484.0,90477.0,0.04881069]
[1767477662096,0.01105167,90484.0,90481.0,0.04980969]
[1767477662296,0.01105167,90484.0,90481.0,0.04916763]
[1767477662947,0.01105167,90484.0,90481.0,0.00035694]
[1767477665152,0.01105179,90483.0,90476.0,0.01105265]
[1767477665729,0.01105167,90484.0,90483.0,0.000999]
[1767477665902,0.01105179,90483.0,90477.0,0.01105253]
[1767477666432,0.05388446,90483.0,90475.0,0.0455887]
[1767477666735,0.0663098,90485.0,90483.0,0.04881069]
[1767477667863,0.01105167,90484.0,90483.0,0.04881069]
[1767477668268,0.01105179,90483.0,90478.0,0.04881069]
[1767477669622,0.01105192,90482.0,90478.0,0.04881069]
[1767477669833,0.01105192,90482.0,90471.0,0.05526585]
[1767477669834,0.05526611,90472.0,90464.0,0.10394713]
[1767477670028,0.05526611,90472.0,90450.0,0.2]
[1767477670029,0.01105363,90468.0,90465.0,0.04900996]
[1767477670228,0.22106734,90471.0,90455.0,0.0552759]
[1767477670230,0.01105448,90461.0,90455.0,0.04881069]
[1767477670448,0.01105448,90461.0,90455.0,0.01105522]
[1767477670449,0.01005548,90461.0,90455.0,0.01105522]
[1767477670625,0.07738876,90468.0,90462.0,0.04881069]
[1767477670626,0.01105375,90467.0,90462.0,0.04881069]
[1767477670854,0.00035806,90467.0,90462.0,0.04881069]
[1767477671056,0.00035806,90467.0,90462.0,0.05986505]
[1767477671261,0.02212,90468.0,90463.0,0.01105424]
[1767477671465,0.01105363,90468.0,90463.0,6.329e-05]
[1767477671870,0.01105363,90468.0,90463.0,0.04887398]
[1767477672104,0.01105375,90467.0,90463.0,0.04887398]
[1767477672495,0.01105363,90468.0,90463.0,0.04887398]
[1767477675123,0.03317351,90469.0,90463.0,0.0475757]
[1767477675342,0.01105363,90468.0,90463.0,0.0475757]
[1767477675693,0.01061156,90468.0,90463.0,0.04881069]
[1767477676629,0.01105375,90467.0,90463.0,0.04881069]
[1767477676825,0.01061156,90468.0,90463.0,0.04881069]
[1767477677032,0.01105375,90467.0,90463.0,0.04881069]
[1767477677281,0.01061156,90468.0,90463.0,0.04881069]
[1767477679660,0.01105375,90467.0,90463.0,0.04881069]
[1767477679873,0.01105363,90468.0,90463.0,0.04881069]
[1767477680708,0.01105363,90468.0,90462.0,0.0114113]
[1767477681088,0.01105363,90468.0,90463.0,0.04881069]
[1767477682110,0.01105375,90467.0,90463.0,0.04881069]
[1767477682369,0.01105387,90466.0,90463.0,0.04781169]
[1767477682569,0.01105387,90466.0,90450.0,0.02212]
[1767477682570,0.01105412,90464.0,90458.0,0.04881069]
[1767477682689,0.0110546,90460.0,90454.0,0.04881069]
[1767477682882,0.01105448,90461.0,90454.0,0.05986603]
[1767477683084,0.01105473,90459.0,90454.0,0.04881069]
[1767477683325,1e-08,90459.0,90453.0,0.01105546]
[1767477683521,1e-08,90459.0,90454.0,0.01105534]
[1767477683726,1e-08,90459.0,90454.0,0.05986603]
[1767477683886,1e-08,90459.0,90454.0,0.04881069]
[1767477684098,1e-08,90459.0,90454.0,0.05986603]
[1767477685296,0.01105474,90459.0,90454.0,0.04881069]
[1767477686784,1e-08,90459.0,90454.0,0.05986603]
[1767477687160,1e-08,90459.0,90456.0,0.04881069]
[1767477687359,1e-08,90459.0,90456.0,0.05986578]
[1767477687601,1e-08,90459.0,90456.0,0.04881069]
[1767477690107,0.01105474,90459.0,90456.0,0.04881069]
[1767477690476,0.01105485,90458.0,90453.0,0.01105546]
[1767477690670,0.01105474,90459.0,90453.0,0.01105546]
[1767477690921,0.01105474,90459.0,90454.0,0.01105534]
[1767477691130,0.01105474,90459.0,90455.0,0.0493982]
[1767477691481,1e-08,90459.0,90455.0,0.0493982]
[1767477691926,0.01105474,90459.0,90455.0,0.0493982]
[1767477692304,1e-08,90459.0,90455.0,0.06045342]
[1767477692948,1e-08,90459.0,90455.0,0.0493982]
[1767477693551,0.01105474,90459.0,90455.0,0.0493982]
[1767477693890,0.01105485,90458.0,90455.0,0.0493982]
[1767477694971,0.01105485,90458.0,90452.0,0.01105558]
[1767477695366,0.01105497,90457.0,90452.0,0.01105558]
[1767477695577,0.01105485,90458.0,90452.0,0.01105558]
[1767477695865,0.01105497,90457.0,90451.0,0.0110557]
[1767477696272,0.01105485,90458.0,90453.0,0.04626226]
[1767477697611,0.01105497,90457.0,90453.0,0.04626226]
[1767477698507,0.01105509,90456.0,90453.0,0.04626226]
[1767477699345,0.01105558,90452.0,90449.0,0.00048749]
[1767477699570,0.01105522,90455.0,90450.0,0.04626226]
[1767477700003,0.01105546,90453.0,90450.0,0.04626226]
[1767477700430,0.01105534,90454.0,90450.0,0.04626226]
[1767477700847,0.01105522,90455.0,90450.0,0.04626226]
[1767477701052,0.06633115,90456.0,90450.0,0.04626226]
[1767477701291,0.01105497,90457.0,90450.0,0.04626226]
[1767477701497,0.01105509,90456.0,90450.0,0.05731809]
[1767477703370,0.01105509,90456.0,90451.0,0.04626226]
[1767477703566,0.01105509,90456.0,90451.0,0.05731796]
[1767477703762,0.01105497,90457.0,90451.0,0.05731796]
[1767477705084,0.01105497,90457.0,90451.0,0.0110557]
[1767477705280,0.04758232,90456.0,90449.0,0.0250758]
[1767477705480,0.05527488,90457.0,90452.0,0.04626226]
[1767477705687,0.01105509,90456.0,90452.0,0.04626226]
[1767477706104,0.01105522,90455.0,90452.0,0.04626226]
[1767477708331,0.01105534,90454.0,90448.0,0.01105607]
[1767477708535,0.01105534,90454.0,90449.0,0.04626226]
[1767477708771,0.01105522,90455.0,90449.0,0.05731821]
[1767477709554,0.01105534,90454.0,90449.0,0.04626226]
[1767477709941,0.01105522,90455.0,90449.0,0.05731821]
[1767477710374,0.01105534,90454.0,90449.0,0.04626226]
[1767477710702,0.01105534,90454.0,90449.0,0.05731821]
[1767477710831,0.01105522,90455.0,90449.0,0.05731821]
[1767477711810,0.01105522,90455.0,90450.0,0.01105583]
[1767477712018,0.01105509,90456.0,90451.0,0.04626226]
[1767477712337,0.06633081,90456.0,90451.0,0.04626226]
[1767477712567,0.01105534,90454.0,90447.0,0.01105619]
[1767477712769,0.01105509,90456.0,90448.0,0.01105607]
[1767477713044,0.01105546,90453.0,90449.0,0.04626226]
[1767477713245,0.01105534,90454.0,90449.0,0.04626226]
[1767477713422,0.01105534,90454.0,90447.0,0.01105619]
[1767477713587,0.01105534,90454.0,90448.0,0.01105607]
[1767477714305,0.01105534,90454.0,90449.0,0.04626226]
[1767477714507,0.01105522,90455.0,90449.0,0.05731821]
[1767477714700,0.01105534,90454.0,90449.0,0.04626226]
[1767477716237,0.01105534,90454.0,90449.0,0.05731821]
[1767477716384,0.01105534,90454.0,90449.0,0.04626226]
[1767477716590,0.01105522,90455.0,90449.0,0.04626226]
[1767477716985,0.01105522,90455.0,90449.0,0.05731821]
[1767477717204,0.01105534,90454.0,90449.0,0.04626226]
[1767477717952,0.01105534,90454.0,90449.0,0.05731821]
[1767477718164,0.01105534,90454.0,90449.0,0.04626226]
[1767477718637,0.01105522,90455.0,90449.0,0.04626226]
[1767477719028,0.01105534,90454.0,90449.0,0.05731821]
[1767477720218,0.01105534,90454.0,90449.0,0.04626226]
[1767477720442,0.01105534,90454.0,90449.0,0.05731821]
[1767477720964,0.01105534,90454.0,90448.0,0.01076758]
[1767477721267,0.01105534,90454.0,90449.0,0.01105595]
[1767477721446,0.01105522,90455.0,90449.0,0.01105595]
[1767477721651,0.01105509,90456.0,90449.0,0.01105595]
[1767477721970,0.01105509,90456.0,90450.0,0.01105583]
[1767477723269,0.01105509,90456.0,90450.0,0.05642061]
[1767477724105,0.01105509,90456.0,90452.0,0.04536478]
[1767477726100,0.01105522,90455.0,90452.0,0.04536478]
[1767477726501,0.01105509,90456.0,90452.0,0.04536478]
[1767477729918,0.01105522,90455.0,90452.0,0.04536478]
[1767477730115,0.01105509,90456.0,90452.0,0.04536478]
[1767477730324,0.01105522,90455.0,90452.0,0.04536478]
[1767477730926,0.01105509,90456.0,90452.0,0.04536478]
[1767477731275,0.01105474,90459.0,90456.0,0.010999]
[1767477731460,0.01105474,90459.0,90457.0,0.01]
[1767477731664,0.01105474,90459.0,90457.0,0.00995464]
[1767477731976,0.01105474,90459.0,90453.0,0.01105546]
[1767477732148,0.02212,90458.0,90453.0,0.01105546]
[1767477732299,0.03217585,90458.0,90453.0,0.01105546]
[1767477732499,0.021121,90458.0,90453.0,0.01105546]
[1767477732708,0.021121,90458.0,90454.0,0.04536478]
[1767477734378,0.03217585,90458.0,90454.0,0.04536478]
[1767477734542,0.03217585,90458.0,90452.0,0.01105558]
[1767477735723,0.021121,90458.0,90453.0,0.01105546]
[1767477735929,0.03217585,90458.0,90452.0,0.01105558]
[1767477736656,0.02212,90458.0,90453.0,0.01105546]
[1767477737006,0.03317485,90458.0,90452.0,0.01105558]
[1767477737325,0.03317485,90458.0,90453.0,0.01105546]
[1767477737744,0.02212,90458.0,90454.0,0.04536478]
[1767477739752,0.01105497,90457.0,90454.0,0.04507629]
[1767477742783,0.02212,90458.0,90457.0,0.04536478]
[1767477742975,0.02212,90458.0,90457.0,0.04436578]
[1767477743400,0.02212,90458.0,90452.0,0.01105558]
[1767477744101,0.02212,90458.0,90453.0,0.04536478]
[1767477744462,0.03317485,90458.0,90453.0,0.04536478]
[1767477745711,0.01105509,90456.0,90453.0,0.04536478]
[1767477747286,0.01105509,90456.0,90453.0,0.04531942]
[1767477748582,0.06633104,90456.0,90453.0,0.04531942]
[1767477748760,0.05527645,90455.0,90453.0,0.04531942]
[1767477749188,0.01105558,90452.0,90447.0,0.04536478]
[1767477749746,0.0110557,90451.0,90447.0,0.04536478]
[1767477749946,0.01105558,90452.0,90447.0,0.04536478]
[1767477750403,0.01238782,90451.0,90446.0,0.00987649]
[1767477750703,0.01105558,90452.0,90447.0,0.01105619]
[1767477750899,0.01105546,90453.0,90447.0,0.01105619]
[1767477751062,0.01105558,90452.0,90447.0,0.01105619]
[1767477751604,0.01105351,90469.0,90463.0,0.04663538]
[1767477751773,0.01105302,90473.0,90462.0,0.01105436]
[1767477751972,0.01105338,90470.0,90464.0,0.0576895]
[1767477752177,0.01105338,90470.0,90463.0,0.05527119]
[1767477752178,0.01120597,90470.0,90463.0,0.05511934]
[1767477752376,0.01105351,90469.0,90463.0,0.01105424]
[1767477752695,0.01105351,90469.0,90462.0,0.01105436]
[1767477752895,0.01105351,90469.0,90463.0,0.01105424]
[1767477753196,0.01105338,90470.0,90464.0,0.01105412]
[1767477753397,0.01105326,90471.0,90465.0,0.01105399]
[1767477753606,0.01105314,90472.0,90465.0,0.01105399]
[1767477754201,0.01105338,90470.0,90465.0,0.01105399]
[1767477754396,0.01105302,90473.0,90466.0,0.01105387]
[1767477754619,0.03317265,90476.0,90469.0,0.04663538]
[1767477754840,0.08843632,90476.0,90469.0,0.04659003]
[1767477754994,0.01105302,90473.0,90469.0,0.04659003]
[1767477755194,0.01105289,90474.0,90469.0,0.04659003]
[1767477755415,0.01105277,90475.0,90469.0,0.05764354]
[1767477756595,0.01105289,90474.0,90469.0,0.04659003]
[1767477756771,0.01105277,90475.0,90469.0,0.04659003]
[1767477756947,0.01105277,90475.0,90469.0,0.05764354]
[1767477757638,0.01105277,90475.0,90469.0,0.04659003]
[1767477757847,0.01105277,90475.0,90469.0,0.05764354]
[1767477758047,0.01105277,90475.0,90469.0,0.04659003]
[1767477758277,0.01105289,90474.0,90469.0,0.04659003]
[1767477758817,0.01105302,90473.0,90469.0,0.04659003]
[1767477759175,0.01105289,90474.0,90469.0,0.05764354]
[1767477759495,0.01105289,90474.0,90469.0,0.04659003]
[1767477761319,0.01105289,90474.0,90469.0,0.05764354]
[1767477761488,0.01105289,90474.0,90469.0,0.04659003]
[1767477761722,0.01105277,90475.0,90469.0,0.05764354]
[1767477761920,0.01105289,90474.0,90469.0,0.04659003]
[1767477762310,0.01105277,90475.0,90469.0,0.05764354]
[1767477762976,0.01105277,90475.0,90469.0,0.04659003]
[1767477763120,0.01105277,90475.0,90469.0,0.05764354]
[1767477763766,0.01105204,90481.0,90475.0,0.010999]
[1767477763937,0.01105204,90481.0,90475.0,0.05763438]
[1767477764146,0.01105204,90481.0,90477.0,0.04663538]
[1767477764975,0.01105204,90481.0,90477.0,0.03918178]
[1767477765389,0.01105192,90482.0,90477.0,0.03918178]
[1767477765632,0.01105192,90482.0,90473.0,0.03499019]
[1767477766120,0.01105192,90482.0,90462.0,0.04663538]
[1767477766121,0.02212,90483.0,90477.0,0.01105253]
[1767477766246,0.01105143,90486.0,90482.0,0.010999]
[1767477766450,0.01105118,90488.0,90482.0,0.010999]
[1767477766653,0.01105106,90489.0,90482.0,0.02105192]
[1767477766894,0.01105082,90491.0,90484.0,0.01105167]
[1767477767105,0.01105082,90491.0,90485.0,0.05768693]
[1767477767323,0.01105094,90490.0,90484.0,0.01105167]
[1767477767557,0.01105082,90491.0,90484.0,0.01105167]
[1767477767724,0.01105082,90491.0,90485.0,0.04663538]
[1767477768147,0.01105106,90489.0,90485.0,0.04663538]
[1767477768867,0.01105094,90490.0,90485.0,0.04663538]
[1767477769334,0.01105106,90489.0,90484.0,0.01105167]
[1767477770004,0.01105094,90490.0,90484.0,0.01105167]
[1767477770474,0.01105106,90489.0,90484.0,0.01105167]
[1767477770888,0.01105094,90490.0,90484.0,0.01105167]
[1767477771526,0.01105082,90491.0,90490.0,0.000999]
[1767477771928,0.01105082,90491.0,90485.0,0.05768693]
[1767477772129,0.01105082,90491.0,90486.0,0.01105143]
[1767477772350,0.01105082,90491.0,90485.0,0.01105155]
[1767477773317,0.01105094,90490.0,90484.0,0.01105167]
[1767477773692,0.01105094,90490.0,90485.0,0.01105155]
[1767477774677,0.01105094,90490.0,90484.0,0.01105167]
[1767477774882,0.01105094,90490.0,90485.0,0.01105155]
[1767477775107,0.01105094,90490.0,90483.0,0.01105179]
[1767477775108,0.01105106,90489.0,90483.0,0.01105179]
[1767477775286,0.01105106,90489.0,90484.0,0.01105167]
[1767477775482,0.01105106,90489.0,90483.0,0.01105179]
[1767477775670,0.01105106,90489.0,90484.0,0.01105167]
[1767477776049,0.01105106,90489.0,90485.0,0.04663538]
[1767477776326,0.06630478,90492.0,90490.0,0.04663538]
[1767477776471,0.06630478,90492.0,90483.0,0.01105179]
[1767477776472,0.05525451,90491.0,90484.0,0.04663538]
[1767477777942,0.01105106,90489.0,90484.0,0.04663538]
[1767477778197,0.01105118,90488.0,90484.0,0.04663538]
[1767477778975,0.01105118,90488.0,90484.0,0.0391902]
[1767477779481,0.01105118,90488.0,90484.0,0.03890185]
[1767477781857,0.01105106,90489.0,90484.0,0.03890185]
[1767477782230,0.05863923,90489.0,90483.0,0.01105179]
[1767477782563,0.05863923,90489.0,90481.0,0.03841558]
[1767477782764,0.01105118,90488.0,90482.0,0.01105192]
[1767477782946,0.01105118,90488.0,90483.0,0.01105179]
[1767477786591,0.01105106,90489.0,90488.0,0.04954293]
[1767477786764,0.01630618,90490.0,90483.0,0.01105179]
[1767477786992,0.01630618,90490.0,90484.0,0.04954293]
[1767477787196,0.01105106,90489.0,90484.0,0.04954293]
[1767477787393,0.05525777,90485.0,90478.0,0.01105241]
[1767477787622,0.01105204,90481.0,90477.0,0.04954293]
[1767477787818,0.01096409,90481.0,90477.0,0.04954293]
[1767477788019,0.01105216,90480.0,90477.0,0.04954293]
[1767477788434,0.01096409,90481.0,90477.0,0.04954293]
[1767477788640,0.01105192,90482.0,90477.0,0.04954293]
[1767477788866,0.05864021,90481.0,90475.0,0.01105277]
[1767477789922,0.05864021,90481.0,90476.0,0.01105265]
[1767477790126,0.05864021,90481.0,90475.0,0.01105277]
[1767477790947,0.01105192,90482.0,90477.0,0.01105253]
[1767477791147,0.01105179,90483.0,90477.0,0.01105253]
[1767477791327,0.01105179,90483.0,90478.0,0.01105241]
[1767477791744,0.01105192,90482.0,90477.0,0.01105253]
[1767477792635,0.02736221,90484.0,90483.0,0.04954293]
[1767477792812,0.01105131,90487.0,90483.0,0.04954293]
[1767477793170,0.04758817,90486.0,90483.0,0.04954293]
[1767477793998,0.05863984,90484.0,90483.0,0.04954293]
[1767477794212,0.04758817,90484.0,90483.0,0.04954293]
[1767477794371,0.01105143,90486.0,90484.0,0.01]
[1767477794574,0.01105143,90486.0,90484.0,0.00255593]
[1767477794887,0.04758817,90485.0,90484.0,0.00255593]
[1767477795069,0.04758817,90485.0,90483.0,0.04954293]
[1767477795777,0.04753817,90485.0,90483.0,0.04954293]
[1767477796680,0.04753817,90485.0,90481.0,0.01105204]
[1767477797325,0.04753817,90485.0,90482.0,0.01105192]
[1767477798079,0.04753817,90485.0,90481.0,0.01105204]
[1767477798234,0.04753817,90485.0,90482.0,0.01105192]
[1767477798415,0.01105131,90487.0,90482.0,0.01105192]
[1767477798623,0.04758817,90487.0,90481.0,0.03841566]
[1767477798802,0.04758817,90487.0,90480.0,0.01105216]
[1767477798803,0.01105106,90489.0,90482.0,0.05525926]
[1767477799204,0.05863923,90489.0,90482.0,0.05525926]
[1767477799762,0.01105118,90488.0,90483.0,0.01105179]
[1767477799964,0.04758817,90488.0,90483.0,0.01105179]
[1767477800262,0.05863935,90488.0,90483.0,0.01105179]
[1767477800465,0.04758817,90488.0,90483.0,0.01105179]
[1767477801171,0.05863935,90488.0,90483.0,0.01105179]
[1767477802214,0.010999,90483.0,90480.0,0.01105216]
[1767477802616,0.01,90483.0,90480.0,0.01105216]
[1767477803105,0.01105143,90486.0,90481.0,0.01105204]
[1767477803304,0.01105143,90486.0,90480.0,0.01105216]
[1767477803305,0.0586396,90486.0,90480.0,0.01105216]
[1767477803667,0.06630729,90488.0,90486.0,0.04954293]
[1767477804000,0.06630729,90488.0,90481.0,0.04954293]
[1767477804354,0.01105143,90486.0,90481.0,0.04954293]
[1767477805260,0.01105155,90485.0,90480.0,0.01105216]
[1767477805457,0.04758817,90484.0,90479.0,0.06631318]
[1767477805661,0.01105143,90486.0,90479.0,0.01631318]
[1767477805862,0.01105155,90485.0,90479.0,0.01105228]
[1767477806063,0.01105143,90486.0,90480.0,0.01105216]
[1767477806268,0.01105155,90485.0,90480.0,0.01105216]
[1767477806495,0.01105143,90486.0,90480.0,0.01105216]
[1767477806695,0.01105192,90482.0,90477.0,0.02212]
[1767477806956,4.748e-05,90482.0,90478.0,0.06059534]
[1767477807181,4.748e-05,90482.0,90477.0,0.03317253]
[1767477807364,4.748e-05,90482.0,90478.0,0.01105241]
[1767477807817,0.02736099,90485.0,90484.0,0.04954293]
[1767477808010,0.22102083,90490.0,90478.0,0.06059534]
[1767477808502,0.01105167,90484.0,90480.0,0.04954293]
[1767477808922,0.01105167,90484.0,90480.0,0.04939903]
[1767477809290,0.01105167,90484.0,90479.0,0.01105228]
[1767477809455,0.01105167,90484.0,90478.0,0.01105241]
[1767477810421,0.01105179,90483.0,90478.0,0.01105241]
[1767477810635,0.01105167,90484.0,90478.0,0.01105241]
[1767477811082,0.04864622,90482.0,90478.0,0.01105241]
[1767477811968,0.05525752,90486.0,90479.0,0.05948308]
[1767477812174,0.27002876,90495.0,90479.0,0.01105228]
[1767477812587,0.01105167,90484.0,90480.0,0.01105216]
[1767477813103,0.01105179,90483.0,90480.0,0.01105216]
[1767477813305,0.03314238,90478.0,90476.0,0.02212]
[1767477813457,0.03314238,90478.0,90475.0,0.02212]
[1767477813458,0.02212073,90476.0,90475.0,0.02212]
[1767477813657,0.02212073,90476.0,90473.0,0.02212]
[1767477813859,0.02212073,90476.0,90473.0,0.03317302]
[1767477813860,0.02219192,90476.0,90473.0,0.03317302]
[1767477814263,0.05526021,90482.0,90474.0,0.01105289]
[1767477814728,0.01105216,90480.0,90475.0,0.0484308]
[1767477814940,0.06631187,90483.0,90475.0,0.0484308]
[1767477815170,0.02459627,90482.0,90475.0,0.0484308]
[1767477815493,0.01105228,90479.0,90475.0,0.0484308]
[1767477815714,0.01105241,90478.0,90475.0,0.0484308]
[1767477816159,0.01105228,90479.0,90475.0,0.0484308]
[1767477817886,0.01105241,90478.0,90475.0,0.0484308]
[1767477818093,0.01105228,90479.0,90475.0,0.0484308]
[1767477818797,0.01105228,90479.0,90474.0,0.01105289]
[1767477818798,0.04902081,90479.0,90474.0,0.01105289]
[1767477819024,0.06631126,90483.0,90474.0,0.01105289]
[1767477819205,0.06631126,90483.0,90474.0,0.06631698]
[1767477819410,0.04902081,90482.0,90477.0,0.01105253]
[1767477820017,0.04902081,90482.0,90479.0,0.01105228]
[1767477820245,0.04902081,90482.0,90478.0,0.01105241]
[1767477820381,0.04902081,90482.0,90477.0,0.01105253]
[1767477821183,0.01105204,90481.0,90475.0,0.01105277]
[1767477821504,0.04902081,90479.0,90474.0,0.01105289]
[1767477821684,0.01105204,90481.0,90472.0,0.08843883]
[1767477822460,0.01105192,90482.0,90476.0,0.01105265]
[1767477822656,0.06631123,90483.0,90476.0,0.01105265]
[1767477823072,0.01105179,90483.0,90477.0,0.01105253]
[1767477823622,0.04902081,90482.0,90475.0,0.06631636]
[1767477823827,0.04902081,90482.0,90475.0,0.01631636]
[1767477824161,0.04902081,90482.0,90474.0,0.01105289]
[1767477824507,0.04902081,90482.0,90476.0,0.01105265]
[1767477824709,0.06007273,90482.0,90476.0,0.01105265]
[1767477825285,0.04902081,90482.0,90477.0,0.01105253]
[1767477825488,0.06007273,90482.0,90476.0,0.01105265]
[1767477826543,0.04902081,90482.0,90477.0,0.01105253]
[1767477826692,0.06007273,90482.0,90476.0,0.01105265]
[1767477826899,0.01105179,90483.0,90476.0,0.01105265]
[1767477827126,0.04902081,90481.0,90476.0,0.01105265]
[1767477827487,0.04902081,90481.0,90477.0,0.01105253]
[1767477827687,0.000984,90477.0,90475.0,0.01105277]
[1767477828141,0.04902081,90481.0,90476.0,0.01105265]
[1767477829452,0.01105192,90482.0,90477.0,0.01105253]
[1767477829665,0.01105179,90483.0,90477.0,0.01105253]
[1767477829800,0.01105192,90482.0,90476.0,0.01105265]
[1767477831243,0.01105204,90481.0,90475.0,0.01105277]
[1767477831435,0.01105192,90482.0,90476.0,0.01105265]
[1767477831636,0.01105204,90481.0,90475.0,0.01105277]
[1767477831927,0.01105192,90482.0,90476.0,0.01105265]
[1767477832451,0.01105277,90475.0,90468.0,0.01105363]
[1767477832656,0.000984,90476.0,90470.0,0.0484308]
[1767477832657,0.01203665,90476.0,90470.0,0.0484308]
[1767477832860,0.05526701,90470.0,90468.0,7.119e-05]
[1767477833083,0.05526733,90470.0,90468.0,7.119e-05]
[1767477833320,0.05526733,90470.0,90458.0,0.05527383]
[1767477833321,0.01105424,90463.0,90457.0,0.0484308]
[1767477833519,0.01105436,90462.0,90457.0,0.04878886]
[1767477833727,0.01105424,90463.0,90457.0,0.04878886]
[1767477833966,0.01105436,90462.0,90457.0,0.04878886]
[1767477834322,0.01105436,90462.0,90457.0,0.04868886]
[1767477835343,0.06007517,90462.0,90457.0,0.00035806]
[1767477835492,0.06007517,90462.0,90455.0,0.08845112]
[1767477835697,0.0604332,90462.0,90455.0,0.08845112]
[1767477836259,0.04937884,90462.0,90457.0,0.01105497]
[1767477836495,0.0604332,90462.0,90457.0,0.01105497]
[1767477836649,0.04937884,90462.0,90457.0,0.01105497]
[1767477837301,0.00035803,90462.0,90457.0,0.01105497]
[1767477837988,0.02212,90470.0,90457.0,0.01105497]
[1767477838152,0.01105338,90470.0,90457.0,0.01116232]
[1767477838495,0.05526828,90468.0,90457.0,0.01116232]
[1767477838708,1e-08,90473.0,90457.0,0.01116232]
[1767477838915,1e-08,90473.0,90460.0,0.0110546]
[1767477839062,0.02212,90477.0,90460.0,0.0110546]
[1767477839433,0.01105314,90472.0,90460.0,0.0110546]
[1767477840290,0.01105338,90470.0,90459.0,0.01105473]
[1767477840458,0.01105314,90472.0,90460.0,0.0110546]
[1767477840806,0.02212,90477.0,90474.0,0.01105289]
[1767477841050,0.04688178,90476.0,90474.0,0.01006889]
[1767477841195,0.02212,90477.0,90474.0,0.01006889]
[1767477841413,0.06900178,90483.0,90474.0,0.01006889]
[1767477841618,0.06900178,90483.0,90470.0,0.06695238]
[1767477841822,0.08005357,90483.0,90471.0,0.01105326]
[1767477842029,0.03317179,90483.0,90471.0,0.01105326]
[1767477842230,0.01105192,90482.0,90470.0,0.01168545]
[1767477842582,0.03317179,90483.0,90471.0,0.01105326]
[1767477842795,0.02212,90483.0,90472.0,0.01105314]
[1767477843014,0.01105118,90488.0,90475.0,0.01105277]
[1767477843664,0.03317106,90489.0,90476.0,0.01105265]
[1767477844957,0.03317106,90489.0,90475.0,0.01105277]
[1767477844958,0.04688178,90487.0,90475.0,0.01105277]
[1767477845156,0.04688178,90487.0,90476.0,0.01105265]
[1767477845710,0.04688178,90487.0,90477.0,0.31437694]
[1767477846121,0.01105131,90487.0,90477.0,0.31437694]
[1767477846302,0.01105118,90488.0,90477.0,0.31437694]
[1767477847083,0.01105131,90487.0,90477.0,0.31437694]
[1767477847678,0.01105143,90486.0,90477.0,0.31437694]
[1767477848278,0.01105155,90485.0,90477.0,0.31437694]
[1767477848497,0.01105143,90486.0,90477.0,0.31437694]
[1767477849439,0.05793333,90485.0,90477.0,0.31437694]
[1767477849648,0.04688178,90485.0,90473.0,0.01105302]
[1767477849871,0.01105155,90485.0,90476.0,0.04987113]
[1767477850069,0.01105143,90486.0,90476.0,0.04987113]
[1767477850307,0.01105131,90487.0,90476.0,0.04987113]
[1767477850745,0.01105118,90488.0,90476.0,0.04987113]
[1767477850891,0.01105131,90487.0,90476.0,0.04987113]
[1767477851096,0.01105118,90488.0,90476.0,0.01105265]
[1767477851301,0.08005284,90489.0,90476.0,0.01105265]
[1767477851820,0.08005284,90489.0,90479.0,0.31437694]
[1767477851965,0.06900178,90489.0,90479.0,0.31437694]
[1767477852165,0.03317106,90489.0,90479.0,0.36424807]
[1767477852371,0.01105118,90488.0,90480.0,0.04987113]
[1767477852572,0.01105118,90488.0,90479.0,0.31437694]
[1767477852785,0.01105118,90488.0,90480.0,0.04987113]
[1767477853471,0.04688178,90487.0,90479.0,0.21594614]
[1767477853862,0.01105118,90488.0,90480.0,0.04987113]
[1767477854073,0.03317106,90489.0,90480.0,0.04987113]
[1767477854706,0.01105118,90488.0,90480.0,0.04987113]
[1767477855113,0.01105118,90488.0,90479.0,0.21594614]
[1767477856045,0.01105131,90487.0,90480.0,0.04987113]
[1767477859850,0.01105118,90488.0,90480.0,0.04987113]
[1767477860053,0.03317106,90489.0,90480.0,0.04987113]
[1767477860286,0.01105118,90488.0,90480.0,0.04987113]
[1767477860488,0.02212,90493.0,90480.0,0.04987113]
[1767477860777,0.01105082,90491.0,90480.0,0.04987113]
[1767477860980,0.02212,90493.0,90484.0,0.04987113]
[1767477861223,0.05525469,90491.0,90484.0,0.04987113]
[1767477861379,0.03788475,90491.0,90479.0,0.21594614]
[1767477861811,0.01105094,90490.0,90479.0,0.21594614]
[1767477863817,0.01105082,90491.0,90479.0,0.21594614]
[1767477865911,0.06630465,90492.0,90479.0,0.21594614]
[1767477867120,0.01105082,90491.0,90479.0,0.21594614]
[1767477868611,0.01105082,90491.0,90477.0,0.03317253]
[1767477869218,0.0579326,90491.0,90477.0,0.03317253]
[1767477870559,0.01105094,90490.0,90477.0,0.02212]
[1767477870793,0.04723862,90490.0,90477.0,0.02212]
[1767477870945,0.05828956,90490.0,90477.0,0.02212]
[1767477871345,0.05828956,90490.0,90476.0,0.02212]
[1767477871551,0.05828956,90490.0,90475.0,0.03317277]
[1767477871952,0.05828956,90490.0,90476.0,0.01105265]
[1767477872378,0.05828956,90490.0,90475.0,0.03317277]
[1767477872727,0.05828956,90490.0,90476.0,0.01105265]
[1767477873078,0.05828956,90490.0,90480.0,0.31437636]
[1767477873482,0.01105106,90489.0,90480.0,0.31437636]
[1767477875523,0.05828956,90490.0,90480.0,0.31437636]
[1767477876245,0.01105106,90489.0,90480.0,0.31437636]
[1767477876789,0.04766869,90488.0,90480.0,0.31437636]
[1767477876980,0.01105106,90489.0,90480.0,0.26437636]
[1767477877627,0.01105082,90491.0,90480.0,0.26437636]
[1767477877770,0.01105094,90490.0,90480.0,0.26437636]
[1767477877979,0.01105106,90489.0,90475.0,0.06787568]
[1767477878187,0.01105118,90488.0,90479.0,0.31437636]
[1767477878386,0.01105106,90489.0,90476.0,0.04575568]
[1767477878592,0.01105155,90485.0,90475.0,0.02212]
[1767477878999,0.01105167,90484.0,90475.0,0.02212]
[1767477879194,0.01105155,90485.0,90475.0,0.02212]
[1767477879932,0.04766869,90482.0,90470.0,0.31437636]
[1767477880133,0.04766869,90482.0,90471.0,0.02212]
[1767477880694,0.04766869,90482.0,90471.0,0.03317326]
[1767477881675,0.04766869,90482.0,90471.0,0.02212]
[1767477881810,0.04766869,90482.0,90471.0,0.03317326]
[1767477884442,0.04766869,90482.0,90472.0,0.01105314]
[1767477885224,0.04766869,90482.0,90472.0,0.02212]
[1767477885426,0.04766869,90482.0,90472.0,0.01636]
[1767477885632,0.01105143,90486.0,90472.0,0.01636]
[1767477885925,0.01105131,90487.0,90472.0,0.01636]
[1767477886151,0.01105131,90487.0,90473.0,0.01105302]